[Event "Mongolian Championship Women 2022"]
[Site "Chingis Khentii"]
[Date "2022.05.20"]
[Round "8.5"]
[White "Munkhzul, Turmunkh"]
[Black "Tsetsenbileg, Munkhbayar"]
[Result "1-0"]
[ECO "B19"]
[WhiteElo "2294"]
[BlackElo "1830"]
[Annotator "TA"]
[PlyCount "71"]
[EventDate "2022.05.12"]
[EventType "tourn"]
[EventCountry "MGL"]
[SourceTitle "playchess.com"]
[Source "ChessBase"]
[SourceQuality "1"]
[TimeControl "40/5400+30:1800+30"]

{[%evp 20,71,8,8,13,10,9,3,-7,-2,23,58,98,107,84,101,83,83,99,95,243,220,236,236,348,209,202,27,25,7,884,875,837,881,862,826,860,767,866,863,1057,1064,1128,1119,1212,1164,2055,1850,29974,29974,6303,4798,29990,29991]} 1. e4 {[%emt 0:00:02]} c6 {[%emt 0:00:57]} 2. d4 {[%emt 0:00:06]} d5 {[%emt 0:00:02]} 3. Nc3 {[%emt 0:00:11]} dxe4 {[%emt 0:00:19]} 4. Nxe4 {[%emt 0:00:06]} Bf5 {[%emt 0:00:13]} 5. Ng3 {[%emt 0:00:14]} Bg6 {[%emt 0:00:24]} 6. h4 {[%emt 0:00:14][%cal Bh2h4,Bh4h5][%mdl 32]} h6 {[%emt 0:00:24]} 7. h5 {[%emt 0:00:32]} Bh7 {[%emt 0:00:22]} 8. Nf3 {[%emt 0:00:17]} Nd7 {[%emt 0:00:46]} 9. Bd3 {[%emt 0:00:29]} Bxd3 {[%emt 0:00:51]} 10. Qxd3 {[%emt 0:00:13]} e6 {[%emt 0:00:08]} 11. Bf4 {[%emt 0:00:42]} Qa5+ {[%emt 0:02:30] B19: Classical Caro-Kann: 4...Bf5 main line.} 12. Bd2 {[%emt 0:00:45]} Bb4 {[%emt 0:00:49]} 13. c3 {[%emt 0:01:51][%cal Bc2c3,Bc3c4,Bc4c5][%mdl 32]} Be7 {[%emt 0:01:54] The position is equal.} 14. c4 {[%emt 0:05:40]} Bb4 {[%emt 0:08:11]} 15. Ne4 {[%emt 0:02:05] [#]} b6 $146 {[%emt 0:25:41] Prevents c5.} ({Predecessor:} 15... Ngf6 16. Nd6+ Ke7 17. c5 b6 18. O-O bxc5 19. Bf4 cxd4 20. Nxd4 Qd5 21. Rfd1 c5 22. N4f5+ Kf8 23. Qg3 Nxh5 24. Qh4 Nxf4 25. Qe7+ Kg8 26. Qxf7+ {1-0 (26) Dreamist,T (2657)-Sadhwani,R (2438) Chess.com INT 2018}) 16. a3 {[%emt 0:07:19] White is more active.} Bxd2+ {[%emt 0:00:40]} 17. Nfxd2 {[%emt 0:00:13] [#] Hoping for b4.} ({Much worse is} 17. Nexd2 Ngf6 $11) (17. Qxd2 Qxd2+ 18. Kxd2 Ngf6 $11) 17... Ngf6 {[%emt 0:08:20]} 18. b4 {[%emt 0:02:54]} Qa4 {[%emt 0:10:02]} 19. c5 $36 {[%emt 0:19:05][%mdl 2048] Black is under strong pressure.} Nd5 {[%emt 0:02:54]} (19... Nxe4 $16 20. Nxe4 O-O) 20. Nd6+ $18 {[%emt 0:02:12]} Ke7 {[%emt 0:01:01][%cal Od5b4] [#]} 21. O-O $1 {[%emt 0:07:36] aiming for N2c4.} a5 {[%emt 0:08:54]} (21... bxc5 {was necessary.} 22. bxc5 Rhb8) 22. Rae1 {[%emt 0:03:43] Threatens to win with N2c4.} (22. Qf3 Rhf8 $16) 22... axb4 {[%emt 0:06:55]} 23. Nxf7 $2 {[%emt 0:05:43] Really sharp!} Kxf7 $11 {[%emt 0:08:31]} 24. Qg6+ {[%emt 0:00:08][%mdl 64] Deflection} Ke7 $2 {[%emt 0:00:22][%mdl 8192]} (24... Kf8 $11) 25. Qxg7+ $18 {[%emt 0:00:59]} Kd8 {[%emt 0:00:00]} 26. Qxh8+ {[%emt 0:00:47]} Kc7 {[%emt 0:00:00]} 27. cxb6+ {[%emt 0:00:12]} N5xb6 {[%emt 0:00:57]} 28. Qxh6 {[%emt 0:00:34]} bxa3 {[%emt 0:00:15]} 29. Qg7 {[%emt 0:04:54]} Qc2 {[%emt 0:02:18]} 30. Nf3 {[%emt 0:00:50][%cal Bd2f3,Bf3g5,Bg5e6,Be6c5][%mdl 32]} a2 {[%emt 0:03:13]} 31. h6 {[%emt 0:00:28]} Qf5 {[%emt 0:00:28]} 32. Ng5 {[%emt 0:01:49]} Kb7 {[%emt 0:01:20]} 33. Nxe6 {[%emt 0:01:13] Strongly threatening Nc5+.} Qf6 {[%emt 0:02:09]} 34. Nc5+ {[%emt 0:00:13]} Kc7 {[%emt 0:00:01]} 35. Qg3+ {[%emt 0:00:09]} ({Weaker is} 35. Re6 Qxg7 36. hxg7 a1=Q 37. Rxa1 Rxa1+ 38. Kh2 Ra8 $18) 35... Qd6 {[%emt 0:00:24]} 36. Ne6+ {[%emt 0:00:05] Weighted Error Value: White=0.32/Black=0.79} 1-0

[Event "Mongolian Championship Women 2022"]
[Site "Chingis Khentii"]
[Date "2022.05.20"]
[Round "8.6"]
[White "Mungunzul, Bat-Erdene"]
[Black "Enkhtuul, Altan-Ulzii"]
[Result "0-1"]
[ECO "A70"]
[WhiteElo "2091"]
[BlackElo "2228"]
[Annotator "TA"]
[PlyCount "114"]
[EventDate "2022.05.12"]
[EventType "tourn"]
[EventCountry "MGL"]
[SourceTitle "playchess.com"]
[Source "ChessBase"]
[SourceQuality "1"]
[TimeControl "40/5400+30:1800+30"]

{[%evp 18,114,39,53,62,64,58,58,51,68,77,85,81,71,63,43,51,71,54,0,0,0,0,0,40,29,29,41,44,19,22,27,32,0,0,0,0,-77,-22,-62,-22,-39,-33,-85,-100,-82,-90,-81,-72,-160,-162,-179,-185,-188,-195,-192,-187,-191,-199,-696,-688,-720,-709,-1201,-1055,-1012,-841,-1000,-589,-611,-604,-594,-561,-579,-569,-575,-568,-520,-523,-1970,-1216,-29968,-29970,-29967,-29968,-2807,-2313,-29984,-29985,-29985,-29986,-29986,-3938,-5891,-2887,-5895,-5891,-29967,-1897]} 1. d4 {[%emt 0:00:02]} Nf6 {[%emt 0:00:12]} 2. c4 {[%emt 0:00:09]} c5 {[%emt 0:00:02]} 3. d5 {[%emt 0:00:15]} e6 {[%emt 0:00:05]} 4. Nc3 {[%emt 0:00:12]} exd5 {[%emt 0:00:10]} 5. cxd5 {[%emt 0:00:13]} d6 {[%emt 0:00:04]} 6. e4 {[%emt 0:00:14]} g6 {[%emt 0:00:05]} 7. Bd3 {[%emt 0:00:30]} Bg7 {[%emt 0:00:04]} 8. h3 {[%emt 0:00:13]} O-O {[%emt 0:00:04]} 9. Nf3 {[%emt 0:00:13]} Re8 {[%emt 0:00:06]} 10. O-O {[%emt 0:00:53]} Nbd7 {[%emt 0:00:17][%cal Oc5c4] A70: Modern Benoni: 6 e4 g6 7 Nf3.} 11. Re1 {[%emt 0:08:32]} Ne5 {[%emt 0:00:18] The modern move.} 12. Nxe5 {[%emt 0:02:59]} Rxe5 {[%emt 0:00:08] White is slightly better.} 13. Bf4 {[%emt 0:01:03]} Nh5 {[%emt 0:00:09]} 14. Bxe5 {[%emt 0:19:28]} Bxe5 {[%emt 0:00:10]} 15. Bf1 {[%emt 0:00:12]} Qg5 {[%emt 0:00:03]} 16. Qf3 {[%emt 0:02:48]} Nf4 {[%emt 0:00:09]} 17. Kh1 $1 {[%emt 0:06:40]} h5 {[%emt 0:00:10][%cal Oc8g4]} 18. Ne2 {[%emt 0:06:37]} (18. Rab1 $14) 18... Bg4 $11 {[%emt 0:00:43]} 19. Qe3 {[%emt 0:00:33]} ({Avoid the trap} 19. hxg4 $2 Qh4+ 20. Qh3 Nxh3 $19) 19... Bxe2 {[%emt 0:00:14]} 20. Rxe2 {[%emt 0:00:21][%mdl 64] Pin} Qf6 {[%emt 0:01:28]} (20... Bd4 $5 {[%cal Rd4e3]} 21. Qd2 Qe5 $14) 21. Rc2 {[%emt 0:01:44] Black must now prevent g3.} Bxb2 {[%emt 0:01:55]} 22. Rb1 {[%emt 0:01:47]} Bd4 {[%emt 0:00:12]} 23. Qf3 {[%emt 0:00:44]} b6 {[%emt 0:00:13] [#]} 24. Rb3 $146 {[%emt 0:00:49]} ({Predecessor:} 24. g3 Nxd5 25. Bg2 Qxf3 26. Bxf3 Nc7 27. Rd1 Ne6 28. e5 Rd8 29. exd6 Rxd6 30. Be2 {0-1 (58) Molina,R (2434)-Gabrielian,A (2463) Chess.com INT 2020}) 24... h4 {[%emt 0:04:02]} 25. Qg4 {[%emt 0:08:08]} Nh5 {[%emt 0:07:27]} 26. Rf3 {[%emt 0:00:46]} Qe7 {[%emt 0:00:29]} 27. Bd3 {[%emt 0:06:58]} (27. Ba6 $11 {remains equal.}) 27... Kg7 {[%emt 0:08:51]} (27... a6 $1 $17) 28. Re2 {[%emt 0:01:51]} Be5 {[%emt 0:02:44][%mdl 1024] Black has compensation.} 29. Re1 {[%emt 0:09:51]} Rh8 {[%emt 0:08:51]} 30. Bc4 {[%emt 0:00:21]} ({Better is} 30. Kg1 $15) 30... Nf6 $1 $17 {[%emt 0:17:07] White is now going downhill.} 31. Qg5 {[%emt 0:00:14]} Rh5 {[%emt 0:01:09]} 32. Qd2 {[%emt 0:13:13]} Bd4 {[%emt 0:17:58]} 33. Rf4 {[%emt 0:00:21] [#]} ({White should try} 33. Qf4) 33... Re5 $1 {[%emt 0:08:38][%cal Rf6e4]} 34. Rxh4 {[%emt 0:01:09] White wants to mate with Qh6+.} g5 {[%emt 0:00:21]} 35. Rg4 {[%emt 0:00:17]} ({Don't go for} 35. f4 $2 Rxe4 36. Rh7+ Nxh7 $19) 35... Nxg4 {[%emt 0:00:03]} 36. hxg4 {[%emt 0:00:04]} Qf6 {[%emt 0:00:06]} ({And not} 36... Rxe4 37. Rxe4 Qxe4 38. Qxg5+ Qg6 39. Qxg6+ fxg6 40. Kg1 $15) 37. Kg1 {[%emt 0:02:21]} Re8 $40 {[%emt 0:00:06][%mdl 128] ...Rh8 is the strong threat. Black is out for blood.} 38. Re2 $2 {[%emt 0:05:27]} (38. g3) 38... Rh8 $19 {[%emt 0:00:27]} 39. Qd3 {[%emt 0:00:07]} Qf4 {[%emt 0:00:18]} 40. Rc2 {[%emt 0:00:00]} Qh2+ {[%emt 0:00:00]} 41. Kf1 {[%emt 0:01:17]} Qh1+ {[%emt 0:09:59]} 42. Ke2 {[%emt 0:00:04]} Qg1 {[%emt 0:00:52]} 43. Kf3 {[%emt 0:03:03]} Rh6 {[%emt 0:00:36]} 44. e5 {[%emt 0:00:54] Against Rf6+} Bxe5 {[%emt 0:07:58] Strongly threatening ...Rf6+.} 45. Qf1 {[%emt 0:00:36]} Qh2 {[%emt 0:02:53]} 46. Ke2 {[%emt 0:01:24]} Qf4 {[%emt 0:06:15] Threatens to win with ...Qe4+.} 47. f3 {[%emt 0:00:17] Against Qe4+} Rh2 {[%emt 0:00:33][%cal Ob6b5] Hoping for ...b5!} 48. Kd1 {[%emt 0:03:25]} Qe3 {[%emt 0:01:40]} 49. Re2 {[%emt 0:01:17]} Qd4+ {[%emt 0:00:58]} 50. Rd2 {[%emt 0:00:09]} Qa1+ {[%emt 0:00:08]} 51. Ke2 {[%emt 0:01:26]} Qc3 {[%emt 0:00:08] ( -> ...Bf4)} 52. Bd3 {[%emt 0:02:10]} c4 {[%emt 0:00:51]} 53. Be4 {[%emt 0:00:15]} Bf4 {[%emt 0:00:45][%csl Gf4][%cal Rc3d2]} 54. Rc2 {[%emt 0:00:10]} Qe3+ {[%emt 0:00:31]} 55. Kd1 {[%emt 0:00:10]} c3 {[%emt 0:00:28]} (55... a5 $142 56. a4 Qd4+ 57. Ke2 c3) 56. a4 {[%emt 0:00:44]} a5 {[%emt 0:01:21]} 57. Ra2 {[%emt 0:02:29] [#]} Rh1 $3 {[%emt 0:00:18][%mdl 512] Weighted Error Value: White=0.95/Black=0.29 (precise)} 0-1

[Event "Mongolian Championship Women 2022"]
[Site "Chingis Khentii"]
[Date "2022.05.21"]
[Round "9.1"]
[White "Anu, Bayar"]
[Black "Munguntuul, Batkhuyag"]
[Result "0-1"]
[ECO "D31"]
[WhiteElo "2102"]
[BlackElo "2443"]
[Annotator "TA"]
[PlyCount "80"]
[EventDate "2022.05.12"]
[EventType "tourn"]
[EventCountry "MGL"]
[SourceTitle "playchess.com"]
[Source "ChessBase"]
[SourceQuality "1"]
[TimeControl "40/5400+30:1800+30"]

{[%evp 15,80,0,0,-35,-30,-47,-16,-12,-13,-11,-17,-6,-10,-11,-18,-23,0,0,0,0,0,0,43,0,0,0,6,0,0,0,6,0,0,0,11,-34,-29,-46,-56,-125,-129,-116,-124,-185,-189,-193,-121,-241,-231,-223,-246,-235,-181,-707,-723,-715,-702,-679,-647,-1002,-982,-29984,-29985,-29987,-29988,-29987,-29988]} 1. d4 {[%emt 0:00:02]} d5 {[%emt 0:00:06]} 2. c4 {[%emt 0:00:02]} e6 {[%emt 0:00:07]} 3. Nc3 {[%emt 0:00:04]} c6 {[%emt 0:00:02]} 4. e4 {[%emt 0:00:15]} dxe4 {[%emt 0:00:04]} 5. Nxe4 {[%emt 0:00:03]} Bb4+ {[%emt 0:00:08]} 6. Bd2 {[%emt 0:00:19]} Qxd4 {[%emt 0:00:04]} 7. Bxb4 {[%emt 0:00:09]} Qxe4+ {[%emt 0:00:03]} 8. Ne2 {[%emt 0:00:16]} Na6 {[%emt 0:00:22]} 9. Ba5 {[%emt 0:00:22][%csl Ga5][%cal Rd1d8] [#] D31: Queen's Gambit Declined: Semi-Slav without ...Nf6 (+ Marshall Gambit and Noteboom) and Exchange Variation lines without ...Nf6.} (9. Bf8 $5 {[%cal Rd1d6]} Ne7 10. Bxg7 $11) 9... Bd7 {[%emt 0:09:28] Strongly threatening ...Nc5.} 10. Qd6 {[%emt 0:10:08] [#] Inhibits Nc5.} Nf6 $146 {[%emt 0:09:15]} ({Predecessor:} 10... c5 11. O-O-O Nf6 12. Nc3 Qc6 13. Qg3 O-O 14. Rd6 Qc8 15. Bd3 Ne8 16. Rxa6 bxa6 {1-0 (44) Velikic,A (2274)-Chelushkina,I (2190) Vrnjacka Banja 2021}) 11. O-O-O {[%emt 0:03:09] The position is equal.} Qxc4+ {[%emt 0:13:44]} 12. Nc3 {[%emt 0:01:08]} Qc5 {[%emt 0:00:17]} 13. Bxa6 {[%emt 0:02:19]} Qxd6 {[%emt 0:00:37]} 14. Rxd6 {[%emt 0:00:16]} bxa6 {[%emt 0:00:02]} 15. Rhd1 {[%emt 0:07:25]} Rb8 {[%emt 0:02:10]} 16. Ne4 $1 {[%emt 0:26:57]} Nxe4 {[%emt 0:05:19]} 17. Rxd7 {[%emt 0:00:08]} O-O {[%emt 0:00:18]} 18. f3 {[%emt 0:05:26]} Rb5 {[%emt 0:13:14]} 19. Bd8 {[%emt 0:03:57]} (19. Be1 $5 {[%cal Rf3e4]} Nf6 20. Rxa7 $11) 19... Nc5 {[%emt 0:05:49]} 20. Rxa7 {[%emt 0:05:07]} h6 {[%emt 0:07:44]} 21. b3 {[%emt 0:10:43]} e5 {[%emt 0:07:35]} 22. Be7 {[%emt 0:08:26]} Re8 {[%emt 0:00:17]} 23. Bxc5 {[%emt 0:01:24]} Rxc5+ $11 {[%emt 0:00:03][%mdl 4096] Endgame KRR-KRR} 24. Kb2 {[%emt 0:00:13]} a5 {[%emt 0:05:49]} 25. Rdd7 {[%emt 0:00:33]} (25. Rc1 $5 {[%cal Rc1c5]} Rd5 26. Rxc6 $11) 25... e4 $1 {[%emt 0:00:58]} 26. Rxf7 {[%emt 0:08:36]} Rg5 {[%emt 0:00:15]} 27. g3 {[%emt 0:01:07]} ({White should try} 27. Kc3 $15) 27... exf3 $17 {[%emt 0:00:14]} 28. Rxf3 {[%emt 0:00:11]} Re2+ {[%emt 0:00:10]} 29. Kc3 {[%emt 0:01:49]} (29. Ka3 $17 {was worth a try.}) 29... Rxh2 $19 {[%emt 0:06:55]} 30. a4 {[%emt 0:00:24] [#]} Rh3 {[%emt 0:00:46]} (30... Rg2 $1 $19 31. Kd4 h5) 31. Kc4 {[%emt 0:00:29]} (31. Kb2 $17) 31... h5 {[%emt 0:00:13] And now ...h4 would win.} 32. Rd3 {[%emt 0:01:50]} Kh7 {[%emt 0:00:46]} ({Stronger than} 32... Rhxg3 33. Rxg3 Rxg3 34. Rxa5 Rg4+ 35. Kd3 $15) 33. Ra6 {[%emt 0:00:25]} Rg4+ {[%emt 0:02:17]} ({Not} 33... Rgxg3 34. Rxg3 Rxg3 35. Rxa5) 34. Kc3 $2 {[%emt 0:01:32]} (34. Rd4) 34... Rgxg3 {[%emt 0:00:08]} 35. Rxg3 {[%emt 0:00:19]} Rxg3+ {[%emt 0:00:02] KR-KR} 36. Kc4 {[%emt 0:00:17]} Rg5 {[%emt 0:02:18]} 37. Rxc6 {[%emt 0:00:28]} h4 {[%emt 0:00:04][%cal Bh5h4,Bh4h3,Bh3h2][%mdl 32] ( -> ...h3)} 38. b4 {[%emt 0:00:13]} h3 {[%emt 0:00:55] Black mates.} 39. Kb3 {[%emt 0:01:44]} h2 {[%emt 0:00:23]} 40. Rc1 {[%emt 0:00:00]} Rg1 {[%emt 0:00:00] Weighted Error Value: White=0.72/Black=0.08 (flawless)} 0-1

[Event "Mongolian Championship Women 2022"]
[Site "Chingis Khentii"]
[Date "2022.05.21"]
[Round "9.2"]
[White "Bayarmaa, Bayarjargal"]
[Black "Khulan, Enkhsaikhan"]
[Result "1-0"]
[ECO "C02"]
[WhiteElo "2124"]
[BlackElo "2111"]
[Annotator "TA"]
[PlyCount "105"]
[EventDate "2022.05.12"]
[EventType "tourn"]
[EventCountry "MGL"]
[SourceTitle "playchess.com"]
[Source "ChessBase"]
[SourceQuality "1"]
[TimeControl "40/5400+30:1800+30"]

{[%evp 10,105,56,58,53,73,76,77,77,87,94,93,147,39,42,30,34,27,37,25,37,43,53,64,54,30,54,51,54,18,24,14,24,9,66,70,63,62,138,139,132,150,183,180,166,177,220,143,246,249,260,251,302,265,343,345,331,288,263,218,268,268,290,299,516,517,499,482,552,491,486,470,665,673,715,731,701,657,880,846,768,736,1202,1214,1638,1580,1599,1513,1618,1579,2300,1244,29988,29989,29989,29990,29991,29992]} 1. d4 {[%emt 0:00:03]} d5 {[%emt 0:00:06]} 2. c4 {[%emt 0:00:05]} e6 {[%emt 0:00:04]} 3. Nc3 {[%emt 0:00:16]} c6 {[%emt 0:00:11]} 4. e4 {[%emt 0:02:59]} Bb4 {[%emt 0:00:18]} 5. cxd5 {[%emt 0:05:58]} cxd5 {[%emt 0:01:32]} 6. e5 {[%emt 0:00:40]} Nc6 {[%emt 0:01:08] C02: French: Advance Variation.} 7. a3 {[%emt 0:02:59]} Ba5 {[%emt 0:01:26]} 8. b4 {[%emt 0:01:35] [#]} Bc7 $146 {[%emt 0:02:43] White is better.} ({Predecessor:} 8... Bb6 9. Nf3 Nge7 10. Be2 O-O 11. O-O a6 12. Qd3 Nf5 13. Be3 f6 14. exf6 Qxf6 {0-1 (21) Strzemieczny,J (1241)-Grochowski,M (1744) Warsaw 2018}) 9. Qg4 {[%emt 0:07:15]} Nge7 {[%emt 0:01:16]} 10. Bd3 {[%emt 0:05:45]} (10. Qxg7 Rg8 11. Qxh7 Nxd4) 10... h5 {[%emt 0:03:26]} (10... O-O $142) 11. Qh4 {[%emt 0:07:15] 0x0.001a2cbfc2e0dp-1022s more active pieces. The black rooks are badly placed.} (11. Qxg7 $16 Rg8 12. Qh7 Nxd4 13. Bf4) 11... Nf5 $14 {[%emt 0:06:49]} 12. Qxd8+ {[%emt 0:00:25]} Bxd8 {[%emt 0:00:18]} 13. Bxf5 {[%emt 0:00:33]} exf5 {[%emt 0:00:05]} 14. Nge2 {[%emt 0:02:58]} Be6 {[%emt 0:01:49]} 15. h4 $1 {[%emt 0:00:25]} Bb6 {[%emt 0:01:34]} 16. Be3 {[%emt 0:05:46]} O-O {[%emt 0:19:02]} 17. Rd1 {[%emt 0:06:46]} Rac8 {[%emt 0:04:15][%cal Of5f4]} 18. g3 {[%emt 0:01:00]} Ne7 {[%emt 0:01:35][%cal Of5f4]} 19. Bg5 {[%emt 0:03:51]} (19. Kd2 {seems wilder.} Rc4 20. Rc1 Rd8 21. Na4) 19... Ng6 {[%emt 0:03:24]} 20. O-O {[%emt 0:02:14]} Rc4 {[%emt 0:06:08][%cal Of5f4]} 21. Rd2 {[%emt 0:00:51]} Bd8 {[%emt 0:03:59]} ({Better is} 21... f6 $11 22. exf6 gxf6) 22. Bxd8 {[%emt 0:03:55]} Rxd8 {[%emt 0:00:23]} 23. Nb5 {[%emt 0:00:21]} Rdc8 {[%emt 0:22:15] Black is on the road to losing.} ({Black should try} 23... b6 $14) 24. Nxa7 $16 {[%emt 0:05:03]} Ra8 {[%emt 0:00:40]} 25. Nb5 {[%emt 0:00:18]} Bd7 {[%emt 0:06:30]} 26. Nd6 {[%emt 0:00:27][%csl LRb7,LRc4]} Rc7 {[%emt 0:01:50]} 27. Ra1 {[%emt 0:01:52]} Ne7 {[%emt 0:04:07]} 28. Rd3 {[%emt 0:02:57]} Rc2 {[%emt 0:02:15]} (28... Nc8 $16 {might work better.}) 29. Nf4 $18 {[%emt 0:01:11]} b5 {[%emt 0:03:38]} 30. Nxh5 {[%emt 0:01:57] Pair of Knights!} Ng6 {[%emt 0:01:06]} 31. Kg2 {[%emt 0:05:08][%cal Bg1g2,Bg2f3,Bf3f4,Bf4g4][%mdl 32]} Ra7 {[%emt 0:00:54]} 32. Re1 {[%emt 0:01:49]} Rac7 {[%emt 0:00:39]} 33. Red1 {[%emt 0:00:33]} Ra2 {[%emt 0:00:38]} 34. R1d2 {[%emt 0:01:18]} Ra1 {[%emt 0:00:08]} 35. Rb3 {[%emt 0:01:07]} Rcc1 {[%emt 0:00:48][%cal Of5f4]} 36. Kf3 {[%emt 0:00:33] Inhibits f4.} Bc6 $2 {[%emt 0:00:51] [#]} (36... Kf8 37. Rbd3 Rc7) 37. Nxf5 {[%emt 0:00:34]} Bd7 {[%emt 0:00:35]} 38. Nhxg7 {[%emt 0:01:42]} Kh7 {[%emt 0:00:29]} 39. h5 {[%emt 0:01:20]} Nf8 {[%emt 0:00:14]} 40. Kf4 {[%emt 0:00:00]} Rh1 {[%emt 0:00:00]} (40... Rc6 $142 41. f3 Rh1) 41. Rc3 {[%emt 0:01:11]} Bxf5 {[%emt 0:04:18]} 42. Nxf5 {[%emt 0:00:18]} Rxh5 {[%emt 0:00:36]} 43. Kg4 {[%emt 0:00:17]} Kg6 {[%emt 0:04:28]} 44. Ne7+ {[%emt 0:00:39]} Kh6 {[%emt 0:00:14]} 45. Nxd5 {[%emt 0:00:28]} Rhh1 {[%emt 0:02:27]} 46. Nf4 {[%emt 0:00:21]} Rhc1 {[%emt 0:02:23]} 47. Rxc1 {[%emt 0:00:31]} Rxc1 {[%emt 0:00:09][%mdl 4096] Endgame KRN-KRN} 48. d5 {[%emt 0:00:04][%cal Bd4d5,Bd5d6][%mdl 32]} Kg7 {[%emt 0:01:39]} 49. Kf5 {[%emt 0:00:38]} Rc3 {[%emt 0:01:34]} 50. e6 {[%emt 0:00:30]} Ng6 {[%emt 0:02:16]} 51. Nxg6 {[%emt 0:00:48] White mates.} fxg6+ {[%emt 0:00:08]} 52. Kg5 {[%emt 0:00:24]} Rxa3 {[%emt 0:00:49]} 53. d6 {[%emt 0:00:06] Weighted Error Value: White=0.14 (very precise) /Black=0.34} 1-0